bitfinex/quotes_ETHUSD_20250611
["timestamp","ask_amount","ask_price","bid_price","bid_amount"]
[1749640674259,0.55,2762.5,2762.0,1.08315771]
[1749640674561,3.71,2762.4,2762.2,0.1808]
[1749640675546,1.3265,2762.3,2762.2,0.1808]
[1749640675759,0.55,2762.2,2761.9,0.1808]
[1749640677550,0.55,2762.2,2762.0,0.0062875]
[1749640680534,0.55,2762.2,2761.9,0.1808]
[1749640683582,0.1808,2762.4,2762.0,0.755]
[1749640683739,3.709,2762.6,2762.1,6.52099717]
[1749640683939,3.709,2762.6,2762.1,0.1808]
[1749640684474,0.55,2762.5,2762.1,1.2630688]
[1749640684663,4.259,2762.5,2762.1,1.2630688]
[1749640685243,4.259,2762.5,2762.1,1.26935589]
[1749640685651,0.1808,2762.7,2762.1,7.60955306]
[1749640685857,0.55,2762.6,2762.3,0.1808]
[1749640688746,0.55,2762.3,2761.9,1.0822688]
[1749640688960,10.04719717,2762.2,2761.9,0.1808]
[1749640689160,3.707,2762.2,2761.9,0.1808]
[1749640690781,0.55,2762.1,2761.9,0.1808]
[1749640691083,3.707,2762.2,2762.0,0.00480706]
[1749640693386,3.707,2762.2,2762.1,0.8169]
[1749640693574,3.707,2762.2,2762.1,0.9977]
[1749640693893,0.1808,2762.6,2762.1,0.9977]
[1749640694076,3.709,2762.5,2762.3,0.1808]
[1749640695388,0.1808,2762.8,2762.3,0.1808]
[1749640695389,0.55,2762.7,2762.3,0.1808]
[1749640695594,3.708,2762.6,2762.3,1.26314274]
[1749640696098,8.42032858,2763.1,2762.3,1.26314274]
[1749640696099,9.17332858,2763.1,2762.3,1.08234274]
[1749640696395,0.55,2763.0,2762.5,0.1808]
[1749640696606,5.72468909,2763.0,2762.5,1.26314274]
[1749640696801,5.72468909,2763.0,2762.5,0.1808]
[1749640697007,5.72468909,2763.0,2762.5,1.26314274]
[1749640698324,0.55,2763.0,2762.5,1.26314274]
[1749640698476,3.706,2762.9,2762.6,1.08234274]
[1749640698677,3.706,2762.9,2762.7,0.1808]
[1749640699616,6.89019717,2762.8,2762.7,0.1808]
[1749640699804,8.77971689,2762.8,2762.4,0.1808]
[1749640701025,2.43951972,2762.8,2762.4,0.1808]
[1749640701178,1.66461972,2762.8,2762.4,0.1808]
[1749640701605,0.55,2762.8,2762.4,0.1808]
[1749640702888,0.55,2762.6,2762.4,0.1808]
[1749640703083,0.55,2762.4,2762.1,2.02504274]
[1749640704517,0.55,2762.4,2762.1,0.1808]
[1749640707616,0.55,2762.4,2761.8,1.4472736]
[1749640707617,0.55,2762.2,2761.8,1.08234274]
[1749640707779,0.55,2762.2,2761.9,0.1808]
[1749640707780,3.704,2762.1,2761.9,0.1808]
[1749640709585,0.55,2762.0,2761.9,0.1808]
[1749640712435,9.68087042,2762.9,2762.0,0.8245]
[1749640712436,0.8132,2762.7,2762.0,0.8245]
[1749640712740,0.8132,2762.7,2762.0,1.90715287]
[1749640712934,0.8132,2762.7,2762.1,1.08265287]
[1749640712935,3.705,2762.6,2762.1,1.08265287]
[1749640713096,3.705,2762.6,2762.3,0.1808]
[1749640715514,0.55,2762.7,2762.3,0.1808]
[1749640715828,0.1808,2762.8,2762.4,0.7611]
[1749640716018,3.705,2762.7,2762.4,0.7611]
[1749640716418,0.55,2763.0,2762.4,0.7611]
[1749640716736,3.704,2762.9,2762.6,0.1808]
[1749640723712,3.699,2762.8,2762.6,0.1808]
[1749640723919,0.1808,2763.2,2762.6,0.1808]
[1749640724133,4.249,2763.1,2762.8,0.1808]
[1749640724710,0.55,2763.1,2762.8,0.1808]
[1749640724944,0.55,2763.1,2762.8,0.9675]
[1749640725244,3.699,2763.0,2762.8,0.9675]
[1749640725537,3.7,2762.9,2762.8,0.9675]
[1749640726842,7.77,2763.3,2762.8,0.9675]
[1749640727026,3.699,2763.0,2762.8,0.7867]
[1749640727422,3.699,2763.0,2762.9,0.1808]
[1749640729447,3.697,2763.0,2762.9,0.1808]
[1749640731556,0.55,2762.9,2762.5,1.08141322]
[1749640731726,6.33735973,2762.7,2762.5,0.1808]
[1749640731927,3.697,2762.6,2762.5,0.1808]
[1749640734033,4.247,2762.6,2762.5,0.1808]
[1749640734235,0.55,2762.5,2762.0,1.08141322]
[1749640734563,0.55,2762.5,2762.2,0.1808]
[1749640735977,0.55,2762.2,2762.0,1.08141322]
[1749640736127,0.55,2762.0,2761.8,1.08141322]
[1749640736332,0.55,2762.0,2761.7,1.26221322]
[1749640737242,3.698,2762.1,2761.7,1.26221322]
[1749640737432,3.698,2762.1,2761.9,0.1808]
[1749640740485,3.698,2762.1,2761.9,1.013]
[1749640740984,3.698,2762.1,2761.9,2.09441322]
[1749640741596,0.8229,2762.7,2762.0,7.41877295]
[1749640741879,3.697,2762.6,2762.1,1.08141322]
[1749640742056,3.697,2762.6,2762.4,0.1808]
[1749640742263,3.697,2762.6,2761.9,2.2794736]
[1749640742264,1.3099,2762.5,2762.3,0.1808]
[1749640742557,1.3099,2762.5,2762.1,0.1808]
[1749640743281,6.33735973,2762.3,2762.1,0.1808]
[1749640743463,1.3099,2762.5,2762.1,0.1808]
[1749640743659,0.55,2762.3,2762.1,0.1808]
[1749640744187,0.55,2762.4,2762.1,0.1808]
[1749640745494,0.5505,2762.6,2762.1,0.1808]
[1749640745694,4.248,2762.5,2762.2,0.1808]
[1749640746406,0.1808,2762.7,2762.2,0.1808]
[1749640746700,6.33735973,2763.2,2762.2,0.1808]
[1749640746701,0.808,2763.2,2762.6,6.33735973]
[1749640746998,3.701,2763.1,2762.6,0.1808]
[1749640747299,0.55,2763.0,2762.6,0.1808]
[1749640747789,3.701,2763.1,2762.6,0.1808]
[1749640747983,4.16998,2763.1,2762.6,0.1808]
[1749640748178,0.55,2763.0,2762.6,0.1808]
[1749640751771,0.7817,2763.4,2762.7,0.8301]
[1749640751988,3.697,2763.3,2762.9,0.1808]
[1749640753803,3.696,2763.2,2762.9,0.1808]
[1749640754689,0.55,2763.3,2762.9,0.1808]
[1749640754877,3.695,2763.2,2762.9,0.1808]
[1749640757600,3.693,2763.1,2762.9,0.1808]
[1749640757928,3.693,2763.3,2762.8,1.89283522]
[1749640758216,3.693,2763.3,2763.2,0.1808]
[1749640758417,3.693,2763.3,2763.2,0.48290719]
[1749640758773,0.55,2763.6,2763.2,0.48290719]
[1749640759019,3.693,2763.4,2763.3,0.30209626]
[1749640759572,0.55,2763.6,2763.3,0.30209626]
[1749640759775,3.692,2763.5,2763.3,0.30209626]
[1749640759983,3.692,2763.7,2763.3,0.30209626]
[1749640760188,3.692,2763.7,2763.5,0.1808]
[1749640760382,4.242,2763.7,2763.6,0.30206347]
[1749640760582,0.764,2764.2,2763.6,0.30206347]
[1749640760879,3.692,2764.1,2763.6,0.48286347]
[1749640761205,0.55,2764.0,2763.6,0.48286347]
[1749640761383,3.693,2763.9,2763.6,0.48286347]
[1749640765319,0.55,2764.1,2763.6,0.48286347]
[1749640765557,3.691,2763.9,2763.6,0.48286347]
[1749640767016,0.55,2764.2,2763.6,0.48286347]
[1749640767189,3.69,2763.9,2763.6,0.48286347]
[1749640767924,0.55,2764.2,2763.6,0.30206347]
[1749640768221,3.69,2764.1,2763.8,0.1808]
[1749640768401,3.69,2764.1,2763.9,0.30203068]
[1749640770113,3.688,2764.1,2763.9,0.30203068]
[1749640770821,3.689,2764.1,2763.9,1.07063068]
[1749640773447,0.55,2764.3,2763.9,1.07063068]
[1749640773647,3.687,2764.2,2764.0,0.1808]
[1749640773815,3.687,2764.2,2764.1,0.30200883]
[1749640774447,4.237,2764.2,2764.1,0.30200883]
[1749640777950,5.0608,2764.2,2764.1,0.30200883]
[1749640778152,31.20803775,2764.2,2764.1,0.30200883]
[1749640783573,37.53881517,2764.2,2764.1,0.30200883]
[1749640785354,37.51281517,2764.2,2764.1,0.30200883]
[1749640785750,47.51281517,2764.2,2764.1,0.30200883]
[1749640786574,41.18203775,2764.2,2764.1,0.30200883]
[1749640789165,48.95203775,2764.2,2764.1,0.30200883]
[1749640789376,0.55,2763.9,2763.0,1.26068847]
[1749640789579,0.55,2763.3,2763.1,0.30211813]
[1749640789874,10.74357742,2763.2,2763.1,0.30211813]
[1749640791077,0.7308,2763.2,2763.1,0.30211813]
[1749640791283,4.4178,2763.2,2763.1,0.30211813]
[1749640791447,10.8308,2763.8,2763.1,1.11631813]
[1749640791648,0.1808,2763.6,2763.1,1.29711813]
[1749640791977,0.55,2763.4,2763.1,2.37914626]
[1749640792276,0.1808,2763.6,2763.2,1.08202813]
[1749640792471,3.687,2763.5,2763.3,0.30209626]
[1749640792679,3.687,2763.4,2763.3,0.48289626]
[1749640794078,3.687,2763.4,2763.3,0.30209626]
[1749640797483,4.237,2763.4,2763.3,0.30209626]
[1749640797690,4.6607,2763.4,2763.3,0.30209626]
[1749640799456,5.4449,2763.4,2763.3,0.30209626]
[1749640800696,15.4449,2763.4,2763.3,0.30209626]
[1749640800859,0.55,2763.1,2762.4,1.08202813]
[1749640801059,4.239,2763.0,2762.5,0.30218374]
[1749640801255,0.55,2763.0,2762.6,0.8181]
[1749640801459,0.55,2763.0,2762.6,1.12027281]
[1749640801460,3.69,2762.9,2762.6,1.12027281]
[1749640802509,3.69,2762.9,2762.7,0.30216187]
[1749640804000,3.69,2762.8,2762.7,0.48296187]
[1749640804153,0.7308,2763.2,2762.7,0.48296187]
[1749640804361,0.52,2764.1,2762.8,0.815]
[1749640804362,3.69,2763.1,2762.8,0.815]
[1749640804695,0.55,2762.9,2762.7,0.30216187]
[1749640805010,0.55,2762.9,2762.7,0.48296187]
[1749640805357,6.33077742,2762.8,2762.7,0.48296187]
[1749640805697,7.06157742,2762.8,2762.7,0.30216187]
[1749640805893,0.7308,2762.8,2762.7,0.30216187]
[1749640806660,3.693,2762.8,2762.7,0.30216187]
[1749640806995,3.693,2762.8,2762.7,1.05846187]
[1749640808995,4.243,2762.8,2762.7,0.30216187]
[1749640811896,3.694,2762.8,2762.7,0.30216187]
[1749640817824,3.692,2763.1,2763.0,0.30212906]
[1749640818421,6.33077742,2763.5,2763.0,0.30212906]
[1749640818623,3.691,2763.1,2763.0,0.48292906]
[1749640819217,0.55,2763.5,2763.0,0.48292906]
[1749640819391,3.691,2763.1,2763.0,0.48292906]
[1749640823285,4.241,2763.1,2763.0,0.48292906]
[1749640823519,11.75237742,2763.1,2763.0,0.30212906]
[1749640823743,5.6024,2763.1,2763.0,0.30212906]
[1749640823887,15.6024,2763.1,2763.0,0.30212906]
[1749640824326,15.96975239,2763.1,2763.0,0.30212906]
[1749640824533,23.73975239,2763.1,2763.0,0.30212906]
[1749640824888,23.73975239,2763.1,2762.1,1.08188609]
[1749640825089,0.55,2762.6,2762.3,0.8151]
[1749640825317,0.1808,2762.7,2762.3,2.19919171]
[1749640825536,3.693,2762.5,2762.4,1.08188609]
[1749640825903,3.693,2762.5,2762.4,1.26268609]
[1749640826892,3.694,2762.5,2762.4,0.1808]
[1749640827309,3.694,2762.5,2762.4,1.93026828]
[1749640827511,3.694,2762.5,2762.4,0.48299468]
[1749640828244,3.694,2762.7,2762.5,0.8328]
[1749640828531,3.694,2762.7,2762.6,0.30217281]
[1749640828703,7.77,2763.1,2762.6,0.30217281]
[1749640828905,3.694,2763.0,2762.7,1.89868909]
[1749640829109,3.694,2763.0,2762.8,0.48295093]
[1749640829640,3.694,2763.0,2762.9,0.30214]
[1749640830731,11.02312742,2763.0,2762.9,0.30214]
[1749640831316,0.99835,2763.0,2762.9,0.30214]
[1749640831521,4.244,2763.0,2762.9,0.30214]
[1749640835061,0.55,2763.0,2762.9,0.30214]
[1749640835212,3.692,2763.0,2762.9,0.30214]
[1749640835851,0.1808,2763.3,2762.9,0.30214]
[1749640836062,4.242,2763.2,2762.9,0.30214]
[1749640836217,0.55,2763.2,2762.9,0.30214]
[1749640836565,0.55,2763.2,2763.0,0.1808]
[1749640836566,3.692,2763.1,2763.0,0.1808]
[1749640836866,3.692,2763.1,2763.0,0.48292906]
[1749640838828,0.0176107,2879.6,2763.0,0.48292906]
[1749640838829,0.8175,2763.6,2763.0,0.48292906]
[1749640839151,0.8175,2763.6,2763.1,0.30211813]
[1749640839152,4.243,2763.5,2763.1,0.30211813]
[1749640839475,4.243,2763.5,2763.2,0.1808]
[1749640839628,5.40020774,2763.5,2763.3,0.30209626]
[1749640840014,6.88077742,2763.4,2763.3,0.30209626]
[1749640840763,0.55,2763.4,2763.3,0.30209626]
[1749640840972,6.88077742,2763.4,2763.3,0.30209626]
[1749640841760,8.84080516,2763.4,2763.3,0.30209626]
[1749640843052,18.84080516,2763.4,2763.3,0.30209626]
[1749640843841,8.84080516,2763.4,2763.3,0.30209626]
[1749640844040,12.71360516,2763.4,2763.3,0.30209626]
[1749640844975,3.692,2763.4,2763.3,0.30209626]
[1749640845392,0.9443,2763.7,2763.3,0.30209626]
[1749640845673,4.242,2763.6,2763.3,0.30209626]
[1749640847193,7.77,2763.9,2763.3,1.13319626]
[1749640847488,24.99000001,2764.2,2763.5,0.1808]
[1749640847691,3.692,2764.1,2763.8,0.1808]
[1749640847857,3.692,2764.1,2763.8,0.48284161]
[1749640848187,28.21543775,2764.2,2763.9,0.30203068]
[1749640848362,4.243,2764.1,2763.9,0.30203068]
[1749640848569,3.693,2764.1,2763.9,0.30203068]
[1749640848793,24.99000001,2764.2,2763.9,0.30203068]
[1749640848971,3.694,2764.0,2763.9,0.30203068]
[1749640851674,3.692,2764.0,2763.9,0.30203068]
[1749640852569,24.99000001,2764.2,2763.9,0.30203068]
[1749640852785,3.692,2764.1,2763.9,0.30203068]
[1749640853185,24.99000001,2764.2,2763.9,0.30203068]
[1749640853489,24.99000001,2764.2,2764.0,0.9893]
[1749640853490,3.691,2764.1,2764.0,0.9893]
[1749640853689,3.691,2764.1,2764.0,1.29131975]
[1749640854771,24.99000001,2764.2,2764.0,1.29131975]
[1749640854977,24.99000001,2764.2,2764.1,0.30200883]
[1749640855296,24.99000001,2764.2,2764.1,1.12800883]
[1749640855470,28.68100001,2764.2,2764.1,7.45878625]
[1749640855675,28.68100001,2764.2,2764.1,1.12800883]
[1749640861916,28.67900001,2764.2,2764.1,1.12800883]
[1749640862580,24.99000001,2764.2,2764.1,1.12800883]
[1749640862783,28.67900001,2764.2,2764.1,7.45878625]
[1749640863193,28.67900001,2764.2,2764.1,1.12800883]
[1749640864386,24.99000001,2764.2,2764.1,1.12800883]
[1749640864899,28.67800001,2764.2,2764.1,1.12800883]
[1749640865275,28.67800001,2764.2,2764.1,7.45878625]
[1749640865476,24.99000001,2764.2,2764.1,17.45878625]
[1749640865682,24.99000001,2764.2,2764.1,18.53918533]
[1749640865883,24.99000001,2764.2,2764.1,17.45878625]
[1749640866107,24.99000001,2764.2,2764.1,18.90605985]
[1749640866621,24.99000001,2764.2,2764.1,17.45878625]
[1749640866821,24.99000001,2764.2,2764.1,23.78956367]
[1749640866985,24.99000001,2764.2,2764.1,17.45878625]
[1749640867717,3.691,2765.1,2764.3,0.809]
[1749640867885,3.692,2765.1,2765.0,6.33077742]
[1749640868086,3.692,2765.1,2765.0,16.81348794]
[1749640868686,3.692,2765.1,2765.0,10.48271052]
[1749640870001,3.692,2765.1,2765.0,0.48271052]
[1749640870839,12.39145516,2765.1,2765.0,0.48271052]
[1749640870996,12.39145516,2765.1,2765.0,0.30191052]
[1749640871191,6.06067774,2765.1,2765.0,0.30191052]
[1749640871443,5.51167774,2765.1,2765.0,0.30191052]
[1749640871641,3.693,2765.1,2765.0,0.48271052]
[1749640872203,0.7978,2765.3,2765.0,0.48271052]
[1749640872406,3.692,2765.2,2765.0,0.48271052]
[1749640877312,4.19598,2765.2,2765.0,0.48271052]
[1749640877634,0.55,2765.1,2765.0,0.48271052]
[1749640877838,0.55,2765.1,2765.0,0.30191052]
[1749640878702,0.50398,2765.2,2765.0,0.30191052]
[1749640878956,3.692,2765.1,2765.0,0.30191052]
[1749640880308,0.7527,2765.6,2765.0,0.30191052]
[1749640880527,4.243,2765.5,2765.0,0.30191052]
[1749640880726,0.55,2765.3,2765.0,0.30191052]
[1749640881346,1.3427,2765.3,2765.0,0.30191052]
[1749640882557,2.81283635,2765.3,2765.0,0.30191052]
[1749640883402,0.55,2765.1,2765.0,0.30191052]
[1749640890640,3.693,2765.1,2765.0,0.30191052]
[1749640890864,3.692,2765.1,2765.0,0.30191052]
[1749640891067,3.693,2765.1,2765.0,0.30191052]
[1749640891232,0.55,2765.7,2765.0,1.38253189]
[1749640891433,3.693,2765.6,2765.1,0.7821]
[1749640891628,3.693,2765.6,2765.3,0.1808]
[1749640891859,0.9643,2765.8,2765.4,0.30186685]
[1749640892068,0.55,2765.6,2765.4,0.30186685]
[1749640892533,0.9643,2765.8,2765.4,0.30186685]
[1749640892534,3.694,2765.5,2765.4,0.30186685]
[1749640892934,3.694,2765.5,2765.4,0.48186685]
[1749640893753,10.01884792,2765.5,2765.4,0.48186685]
[1749640893964,11.02073271,2765.5,2765.4,0.48186685]
[1749640894172,11.57073271,2765.5,2765.4,0.48186685]
[1749640894353,11.57073271,2765.5,2765.4,0.30186685]
[1749640895055,10.56884792,2765.5,2765.4,0.30186685]
[1749640895432,4.244,2765.5,2765.4,0.30186685]
[1749640897946,3.692,2765.5,2765.4,0.30186685]
[1749640901057,4.242,2765.5,2765.4,0.30186685]
[1749640901256,5.0159,2765.5,2765.4,0.30186685]
[1749640901582,0.55,2765.3,2764.5,1.08178497]
[1749640901768,6.32484792,2764.6,2764.4,1.08178497]
[1749640901968,10.01884792,2764.5,2764.3,1.08178497]
[1749640902286,3.694,2764.4,2764.3,1.08178497]
[1749640903276,3.694,2764.4,2764.2,1.08178497]
[1749640905497,3.694,2764.4,2764.1,2.02585164]
[1749640905801,3.694,2764.4,2764.1,0.14816667]
[1749640905974,4.13856,2764.4,2764.1,0.14816667]
[1749640906181,11.01253562,2764.2,2764.1,0.14816667]
[1749640907170,1.3434,2764.2,2764.1,0.14816667]
[1749640911909,1.5242,2764.2,2764.1,0.14816667]
[1749640914815,15.2152,2764.2,2764.1,0.14816667]
[1749640914988,18.74808956,2764.2,2764.1,0.14816667]
[1749640916825,18.73468956,2764.2,2764.1,0.14816667]
[1749640917687,18.93749401,2764.2,2764.1,0.14816667]
[1749640917904,18.73468956,2764.2,2764.1,0.14816667]
[1749640918186,18.93749446,2764.2,2764.1,0.14816667]
[1749640918418,18.93749487,2764.2,2764.1,0.14816667]
[1749640918623,18.73468956,2764.2,2764.1,0.14816667]
[1749640918818,18.93749509,2764.2,2764.1,0.14816667]
[1749640919135,18.73468956,2764.2,2764.1,0.14816667]
[1749640919601,18.73368956,2764.2,2764.1,0.14816667]
[1749640920437,18.93655715,2764.2,2764.1,0.14816667]
[1749640920610,18.9365567,2764.2,2764.1,0.14816667]
[1749640920936,18.73368956,2764.2,2764.1,0.14816667]
[1749640921244,18.93655336,2764.2,2764.1,0.14816667]
[1749640921438,18.73368956,2764.2,2764.1,0.14816667]
[1749640921743,18.93657685,2764.2,2764.1,0.14816667]
[1749640921945,18.73368956,2764.2,2764.1,0.14816667]
[1749640922168,18.93658067,2764.2,2764.1,0.14816667]
[1749640922331,18.73368956,2764.2,2764.1,0.14816667]
[1749640922535,18.93658295,2764.2,2764.1,0.14816667]
[1749640922733,18.73368956,2764.2,2764.1,0.14816667]
[1749640922935,26.50368956,2764.2,2764.1,0.14816667]
[1749640923442,26.50368956,2764.2,2762.7,0.959]
[1749640923443,0.7516,2763.8,2762.7,0.959]
[1749640923641,9.66913562,2763.3,2763.0,0.1808]
[1749640923937,3.688,2763.2,2763.0,0.1808]
[1749640924655,10.7308,2763.1,2762.6,0.1808]
[1749640924810,9.66913562,2763.3,2762.2,0.7675]
[1749640924811,0.55,2762.7,2762.2,0.7675]
[1749640925004,9.66913562,2762.8,2762.2,0.7675]
[1749640925005,0.55,2762.5,2762.2,0.7675]
[1749640925206,3.693,2762.4,2762.2,0.7675]
[1749640925410,0.55,2762.8,2762.2,0.7675]
[1749640925411,3.693,2762.3,2762.2,0.7675]
[1749640925946,3.693,2762.3,2762.2,0.9483]
[1749640926729,3.693,2762.3,2762.2,0.95310539]
[1749640929416,3.692,2762.3,2762.2,0.95310539]
[1749640929647,3.692,2762.3,2762.2,0.9483]
[1749640930020,3.692,2762.3,2762.2,2.02715609]
[1749640930215,0.55,2763.0,2762.3,0.7567]
[1749640930416,3.692,2762.9,2762.7,0.1808]
[1749640931930,10.0,2763.3,2762.8,0.00197042]
[1749640932134,2.17139153,2764.4,2762.8,0.00197042]
[1749640932135,8.5271,2763.6,2762.8,0.93697042]
[1749640932338,0.55,2763.4,2762.8,0.75617042]
[1749640932521,0.1808,2763.5,2763.0,0.1808]
[1749640932719,1.15893143,2763.8,2763.0,0.7955]
[1749640932720,0.1808,2763.7,2763.0,0.7955]
[1749640933014,3.692,2763.6,2763.3,0.1808]
[1749640933342,4.07928,2763.6,2763.3,0.1808]
[1749640935442,4.07928,2763.6,2763.3,1.25965609]
[1749640935631,4.07928,2763.6,2763.3,0.1808]
[1749640937447,0.7594,2763.4,2763.2,1.07885609]
[1749640937651,5.28310686,2763.3,2763.1,1.07885609]
[1749640937834,10.23166864,2763.1,2763.0,1.07885609]
[1749640938023,0.55,2763.0,2762.9,1.07885609]
[1749640938230,4.242,2763.0,2762.9,1.07885609]
[1749640938615,4.242,2763.0,2762.8,1.07885609]
[1749640939446,5.65244686,2763.0,2762.8,1.07885609]
[1749640939654,5.65244686,2763.0,2762.7,1.25965609]
[1749640940040,5.65244686,2763.0,2762.7,0.1808]
[1749640940240,5.65244686,2763.0,2762.8,0.00264683]
[1749640941034,3.691,2762.9,2762.8,0.00264683]
[1749640942946,0.55,2763.1,2762.8,0.00264683]
[1749640943149,0.55,2763.1,2762.7,0.1808]
[1749640943150,3.69,2763.0,2762.7,0.1808]
[1749640943556,0.55,2763.1,2762.7,0.1808]
[1749640943732,3.689,2763.0,2762.7,0.1808]
[1749640943936,3.689,2762.9,2762.8,0.7589]
[1749640945158,3.689,2762.9,2762.8,0.9397]
[1749640945458,0.55,2763.3,2762.8,0.9397]
[1749640945659,3.689,2763.2,2762.8,0.9397]
[1749640945859,3.689,2763.2,2763.0,0.1808]
[1749640946859,0.1808,2763.4,2763.0,0.1808]
[1749640947160,7.77,2763.6,2763.0,0.1808]
[1749640947365,7.77,2763.6,2763.3,0.1808]
[1749640947532,3.691,2763.5,2763.3,0.1808]
[1749640947728,0.8155,2764.2,2762.9,0.957]
[1749640947936,3.691,2764.1,2763.4,0.1808]
[1749640948143,0.55,2763.9,2763.6,0.1808]
[1749640948660,0.55,2763.7,2763.3,0.9806]
[1749640948863,0.46873,2764.0,2763.3,0.7998]
[1749640949064,0.46873,2764.0,2763.0,0.957]
[1749640949065,0.7949,2764.4,2763.7,0.7739]
[1749640949361,10.0,2764.2,2763.8,0.1808]
[1749640949664,0.55,2764.2,2763.8,0.1808]
[1749640949866,10.0,2764.4,2763.8,0.1808]
[1749640950167,4.27249,2764.3,2763.8,0.1808]
[1749640952062,13.95415864,2764.3,2763.8,0.1808]
[1749640953430,0.55,2764.2,2763.8,0.1808]
[1749640953646,9.68166864,2764.0,2763.8,0.1808]
[1749640953847,3.691,2763.9,2763.8,0.1808]
[1749640954241,3.691,2763.9,2763.5,0.7989]
[1749640954448,3.691,2763.9,2763.6,0.1808]
[1749640956166,9.68166864,2763.7,2763.2,0.7708]
[1749640956368,3.692,2763.6,2763.4,0.1808]
[1749640957530,3.692,2763.5,2763.4,0.1808]
[1749640957765,3.692,2763.5,2763.2,0.7708]
[1749640958073,3.692,2763.5,2763.4,0.1808]
[1749640959361,3.691,2763.5,2763.4,0.1808]
[1749640959667,3.691,2763.5,2763.4,0.9988]
[1749640960063,0.1808,2764.1,2763.4,0.9988]
[1749640960265,0.9694,2764.5,2763.4,0.9988]
[1749640960590,3.694,2764.4,2764.0,0.9493]
[1749640960762,4.93734,2764.4,2764.0,0.9493]
[1749640961399,6.3314881,2764.2,2764.0,0.1808]
[1749640963592,4.244,2764.1,2763.6,0.7959]
[1749640963806,6.3314881,2763.9,2763.7,0.1808]
[1749640964089,3.693,2763.8,2763.7,0.1808]
[1749640965692,4.77227881,2763.8,2763.7,0.1808]
[1749640967891,5.32227881,2763.8,2763.7,0.1808]
[1749640968058,0.55,2763.7,2763.3,0.1808]
[1749640968400,6.3314881,2763.5,2763.3,0.1808]
[1749640968566,3.693,2763.4,2763.3,0.1808]
[1749640970482,0.55,2763.3,2762.7,0.8134]
[1749640970676,6.3314881,2762.9,2762.7,0.8134]
[1749640970967,3.697,2762.8,2762.7,0.8134]
[1749640974857,0.55,2763.3,2762.7,0.8134]
[1749640975062,3.695,2763.2,2762.7,0.8134]
[1749640975277,1.343,2763.6,2762.7,0.8134]
[1749640975483,0.55,2763.4,2762.7,0.8134]
[1749640976010,3.694,2763.3,2762.7,0.8134]
[1749640980294,0.55,2763.5,2762.7,0.8134]
[1749640980500,3.695,2763.2,2763.1,0.1808]
[1749640983372,3.695,2763.2,2763.1,1.26591736]
[1749640983722,3.695,2763.2,2763.1,0.1808]
[1749640984267,3.695,2763.2,2763.1,1.26588975]
[1749640985426,0.55,2763.5,2763.1,1.26588975]
[1749640985699,3.692,2763.4,2763.1,1.26588975]
[1749640986107,3.691,2763.3,2763.1,1.26588975]
[1749640986917,3.691,2763.3,2763.0,1.08508975]
[1749640987074,3.691,2763.3,2763.0,1.26588975]
[1749640988386,0.55,2763.0,2762.9,1.08508975]
[1749640988591,0.55,2763.0,2762.8,1.08508975]
[1749640988932,3.693,2762.9,2762.7,0.1808]
[1749640989295,3.693,2762.8,2762.7,0.1808]
[1749640989910,3.693,2762.8,2762.7,1.6276919]
[1749640990110,3.692,2762.8,2762.7,0.1808]
[1749640990623,3.692,2762.8,2762.7,0.9576]
[1749640993102,1.21006561,2763.6,2762.7,3.12793786]
[1749640993304,3.692,2763.5,2763.2,1.08505017]
[1749640994586,3.692,2763.5,2763.1,0.1808]
[1749640994820,3.691,2763.4,2763.1,0.1808]
[1749640995407,3.69,2763.3,2763.2,1.0850252]
[1749640995718,3.69,2763.3,2763.1,0.1808]
[1749640995719,3.691,2763.3,2763.1,2.42300027]
[1749640997750,3.691,2763.3,2763.1,1.62750027]
[1749640998254,6.33534444,2763.2,2763.0,1.62750027]
[1749640999248,0.9412,2763.5,2763.0,1.62750027]
[1749640999463,3.69,2763.4,2763.2,1.08507088]
[1749640999758,0.7604,2763.7,2763.3,1.08507088]
[1749640999759,0.1808,2763.7,2763.3,1.08507088]
[1749640999960,3.691,2763.6,2763.3,1.08507088]
[1749641000165,3.691,2763.6,2763.2,0.1808]
[1749641000842,3.691,2763.6,2763.4,1.08497857]
[1749641001445,0.55,2763.5,2763.4,1.08497857]
[1749641001669,1.3354,2763.5,2763.3,1.08497857]
[1749641001840,1.39184939,2763.4,2763.2,1.08497857]
[1749641002046,10.22749386,2763.3,2763.2,1.08497857]
[1749641002350,0.7854,2763.2,2763.1,1.08497857]
[1749641002521,5.68095433,2763.2,2763.0,1.08497857]
[1749641002708,4.4774,2763.2,2763.0,1.08497857]
[1749641003972,0.1808,2763.3,2763.0,1.08497857]
[1749641004174,3.691,2763.2,2763.1,1.08497857]
[1749641004336,3.691,2763.2,2763.1,1.26577857]
[1749641006837,3.691,2763.2,2763.1,0.1808]
[1749641007459,0.55,2763.1,2763.0,1.08497857]
[1749641007671,0.55,2763.1,2762.9,1.08497857]
[1749641009335,0.55,2763.1,2762.7,0.1808]
[1749641009985,4.7036,2763.2,2762.7,0.1808]
[1749641010188,4.7036,2763.2,2763.0,1.08514666]
[1749641010868,4.7036,2763.2,2762.7,0.1808]
[1749641011370,6.14170939,2763.2,2762.7,0.1808]
[1749641011572,6.14170939,2763.2,2762.9,1.08516091]
[1749641011871,6.14170939,2763.2,2763.0,1.08516091]
[1749641013082,0.7619,2763.0,2762.4,1.44688121]
[1749641013256,10.55,2763.1,2762.2,1.62768121]
[1749641013257,10.43939386,2762.5,2762.2,1.62768121]
[1749641013597,3.69,2762.4,2762.2,0.1808]
[1749641014142,3.69,2762.4,2762.3,0.00346346]